bitfinex/quotes_SOLUSD_20250424
["timestamp","ask_amount","ask_price","bid_price","bid_amount"]
[1745533959868,9.8769281,151.31,151.27,16.55048829]
[1745533960588,16.48565053,151.32,151.27,16.55048829]
[1745533961679,16.48565053,151.32,151.28,2.4474515]
[1745533962904,16.48565053,151.32,151.27,16.55048829]
[1745533963998,9.8769281,151.32,151.27,16.55048829]
[1745533964198,98.1851833,151.33,151.28,9.8769281]
[1745533964601,9.8769281,151.32,151.27,16.55048829]
[1745533965195,16.48544222,151.32,151.28,9.05673221]
[1745533965506,9.8769281,151.32,151.28,9.05673221]
[1745533966103,9.8769281,151.32,151.28,6.61019054]
[1745533967191,9.8769281,151.32,151.29,2.44658893]
[1745533967785,9.8769281,151.32,151.28,6.61019054]
[1745533969500,16.48545692,151.32,151.28,6.61019054]
[1745533969885,9.8769281,151.32,151.28,6.61019054]
[1745533970588,9.8769281,151.32,151.29,2.44767807]
[1745533971683,9.8769281,151.32,151.28,6.61019054]
[1745533976715,88.30825746,151.33,151.28,6.61019054]
[1745533976716,26.0,151.31,151.3,9.8769281]
[1745533976882,81.7,151.33,151.3,9.8769281]
[1745533977084,81.7,151.33,151.31,12.32538263]
[1745533977436,26.0,151.34,151.31,2.44845453]
[1745533978083,35.8769281,151.34,151.32,2.44845453]
[1745533979015,26.0,151.34,151.3,16.48599891]
[1745533980106,26.0,151.34,151.31,2.4489955]
[1745533980904,35.8769281,151.34,151.31,2.4489955]
[1745533981213,35.8769281,151.34,151.32,2.4489955]
[1745533982728,35.8769281,151.34,151.3,16.48599891]
[1745533983323,35.8769281,151.34,151.31,2.45011849]
[1745533984121,35.8769281,151.34,151.32,2.45011849]
[1745533984716,35.8769281,151.34,151.3,16.48599891]
[1745533986020,35.8769281,151.34,151.31,2.45002708]
[1745533986624,42.48463185,151.34,151.31,2.45002708]
[1745533986795,35.8769281,151.34,151.31,2.45002708]
[1745533986996,35.8769281,151.34,151.3,16.48599891]
[1745533988422,26.0,151.34,151.3,16.48599891]
[1745533988620,26.0,151.34,151.31,2.45042737]
[1745533988914,26.0,151.34,151.32,2.45042737]
[1745533990115,26.0,151.34,151.3,16.48599891]
[1745533990333,35.8769281,151.34,151.3,6.60907081]
[1745533990629,35.8769281,151.34,151.31,2.45079616]
[1745533991413,35.8769281,151.34,151.32,2.45079616]
[1745533992395,35.8769281,151.34,151.3,6.60907081]
[1745533992997,35.8769281,151.34,151.31,2.4504167]
[1745533993625,35.8769281,151.34,151.31,9.05926478]
[1745533993826,26.0,151.34,151.31,9.05926478]
[1745533994039,26.0,151.34,151.32,2.4504167]
[1745533994705,26.0,151.34,151.33,2.4504167]
[1745533996530,81.7,151.35,151.33,2.4504167]
[1745533996727,3.99476843,151.36,151.33,2.4504167]
[1745533996728,94.68,151.38,151.34,9.8769281]
[1745533997122,26.0,151.37,151.34,9.8769281]
[1745533997424,26.0,151.37,151.33,9.05844422]
[1745533997425,81.7,151.38,151.36,9.8769281]
[1745533998111,81.7,151.38,151.37,2.4504167]
[1745533998830,81.7,151.38,151.36,9.8769281]
[1745533999126,81.7,151.38,151.35,16.48389687]
[1745533999908,91.5769281,151.38,151.36,2.44383022]
[1745534000112,98.18296817,151.38,151.36,2.44383022]
[1745534000312,9.8769281,151.37,151.36,2.44383022]
[1745534000525,98.18296817,151.38,151.33,18.151172]
[1745534001419,98.18296817,151.38,151.33,11.5432281]
[1745534001742,98.18296817,151.38,151.34,2.44254566]
[1745534002638,98.18296817,151.38,151.33,18.15112182]
[1745534003227,91.5769281,151.38,151.33,18.15112182]
[1745534004526,98.18293636,151.38,151.34,2.44125072]
[1745534005049,81.7,151.38,151.34,18.92580156]
[1745534005253,81.7,151.38,151.35,9.8769281]
[1745534005627,91.5769281,151.38,151.34,6.60762274]
[1745534007640,91.5769281,151.38,151.34,16.48455084]
[1745534008649,81.7,151.38,151.34,16.48455084]
[1745534009530,81.7,151.38,151.35,9.8769281]
[1745534009741,81.7,151.38,151.36,9.8769281]
[1745534010128,81.7,151.38,151.35,9.8769281]
[1745534010720,81.7,151.38,151.36,2.43912797]
[1745534011451,81.7,151.38,151.35,16.48379055]
[1745534012252,81.7,151.38,151.34,16.48442259]
[1745534013049,81.7,151.38,151.35,2.43915731]
[1745534013552,42.51248939,151.39,151.35,9.04624429]
[1745534013849,35.9069281,151.39,151.35,6.60708698]
[1745534014435,26.03,151.39,151.35,16.48401508]
[1745534015955,35.9069281,151.39,151.34,16.48456653]
[1745534016637,35.9069281,151.39,151.35,2.43947635]
[1745534017851,35.9069281,151.39,151.34,16.48456653]
[1745534019561,35.9069281,151.39,151.35,2.43995651]
[1745534020251,26.03,151.39,151.35,9.04698908]
[1745534020442,35.9069281,151.39,151.36,2.43995651]
[1745534020956,35.9069281,151.39,151.35,6.60703257]
[1745534022951,35.9069281,151.39,151.36,2.43964659]
[1745534023556,35.9069281,151.39,151.36,9.04630142]
[1745534023759,35.9069281,151.39,151.36,6.60665483]
[1745534024062,35.9069281,151.39,151.35,6.60701819]
[1745534024647,42.5124459,151.39,151.35,6.60701819]
[1745534028037,35.9069281,151.39,151.35,6.60701819]
[1745534031764,42.51241922,151.39,151.35,6.60701819]
[1745534031975,9.8769281,151.38,151.35,6.60701819]
[1745534033459,42.51241922,151.39,151.35,6.60701819]
[1745534033869,42.51241922,151.39,151.36,2.44295034]
[1745534034866,42.51241922,151.39,151.35,6.60701819]
[1745534036363,42.51241922,151.39,151.36,2.4446728]
[1745534037285,42.51241922,151.39,151.35,6.60701819]
[1745534037969,42.51241922,151.39,151.34,23.09451252]
[1745534038577,42.51241922,151.39,151.35,2.446613]
[1745534039477,42.51241922,151.39,151.36,2.446613]
[1745534040251,42.51241922,151.39,151.37,2.446613]
[1745534040446,9.8769281,151.38,151.37,2.446613]
[1745534040860,9.8769281,151.38,151.33,2.446613]
[1745534041055,9.8769281,151.38,151.33,18.93159929]
[1745534041278,42.51241922,151.39,151.34,9.8769281]
[1745534041672,35.9069281,151.39,151.34,16.48421551]
[1745534041867,35.9069281,151.39,151.35,2.446613]
[1745534042075,26.03,151.39,151.35,12.3235411]
[1745534042378,26.03,151.39,151.36,2.446613]
[1745534042876,35.9069281,151.39,151.36,2.446613]
[1745534043077,35.9069281,151.39,151.34,16.48421551]
[1745534043780,26.03,151.39,151.36,6.60676532]
[1745534045176,26.0,151.38,151.37,2.44935556]
[1745534045566,0.03,151.39,151.37,2.44935556]
[1745534045757,0.03,151.39,151.37,9.05561613]
[1745534046268,0.03,151.39,151.38,2.44935556]
[1745534047485,0.03,151.39,151.37,6.60626057]
[1745534047677,0.03,151.39,151.36,6.60676532]
[1745534048181,0.03,151.39,151.37,2.44977709]
[1745534049068,0.03,151.39,151.38,2.44977709]
[1745534049681,0.03,151.39,151.38,9.05566954]
[1745534051796,0.03,151.39,151.37,6.60632886]
[1745534052292,9.9069281,151.39,151.36,6.60662869]
[1745534052688,9.9069281,151.39,151.37,2.44955053]
[1745534053100,0.03,151.39,151.37,2.44955053]
[1745534053387,0.03,151.39,151.37,9.05572043]
[1745534053572,0.03,151.39,151.38,2.44955053]
[1745534069093,0.03,151.39,151.37,2.44955053]
[1745534069501,0.03,151.39,151.38,2.44955053]
[1745534073687,9.9069281,151.39,151.38,2.44955053]
[1745534074415,9.9069281,151.39,151.33,8.19588125]
[1745534074602,9.8769281,151.37,151.33,8.19588125]
[1745534075039,9.8769281,151.38,151.33,18.07280935]
[1745534075599,9.8769281,151.38,151.34,2.45018338]
[1745534076413,9.8769281,151.38,151.35,2.45018338]
[1745534077118,9.8769281,151.38,151.33,18.07280935]
[1745534077421,9.8769281,151.37,151.33,18.07280935]
[1745534077796,9.8769281,151.37,151.34,2.45063096]
[1745534078397,9.8769281,151.37,151.35,2.45063096]
[1745534079106,9.8769281,151.37,151.33,18.07280935]
[1745534080220,9.8769281,151.37,151.34,2.45030505]
[1745534081023,9.8769281,151.37,151.35,2.45030505]
[1745534081801,9.8769281,151.37,151.34,2.45030505]
[1745534083131,9.8769281,151.37,151.35,2.45030505]
[1745534083703,9.8769281,151.37,151.33,18.07280935]
[1745534084530,9.8769281,151.37,151.34,2.44981523]
[1745534085209,9.8769281,151.37,151.35,2.44981523]
[1745534085912,9.8769281,151.37,151.33,18.07280935]
[1745534086297,9.8769281,151.37,151.34,2.45012869]
[1745534086501,9.8769281,151.37,151.34,9.05762455]
[1745534086827,9.8769281,151.37,151.35,2.45012869]
[1745534087329,9.8769281,151.37,151.34,6.60749586]
[1745534089125,9.8769281,151.37,151.35,2.44961697]
[1745534090005,9.8769281,151.37,151.34,6.60749586]
[1745534091928,9.8769281,151.37,151.35,2.44902685]
[1745534092731,9.8769281,151.37,151.36,2.44902685]
[1745534093815,9.8769281,151.37,151.35,2.44902685]
[1745534094640,9.8769281,151.37,151.34,6.60749586]
[1745534096339,9.8769281,151.37,151.35,2.44938563]
[1745534097446,9.8769281,151.38,151.36,2.44938563]
[1745534098144,9.8769281,151.38,151.34,6.60749586]
[1745534098952,9.8769281,151.38,151.35,2.44972259]
[1745534099917,9.8769281,151.38,151.36,2.44972259]
[1745534100846,9.8769281,151.38,151.35,2.44972259]
[1745534101338,35.8769281,151.37,151.35,2.44972259]
[1745534102618,26.0,151.37,151.35,9.05683011]
[1745534102814,0.03,151.39,151.35,18.93375821]
[1745534103144,0.03,151.39,151.36,12.32665069]
[1745534103340,0.03,151.39,151.37,9.8769281]
[1745534104331,0.03,151.39,151.38,2.44770411]
[1745534104735,0.03,151.39,151.38,9.05359656]
[1745534108354,0.03,151.39,151.38,2.44770411]
[1745534108728,0.03,151.39,151.38,9.05359656]
[1745534129368,0.03,151.39,151.38,2.44562363]
[1745534130461,0.03,151.39,151.38,9.05151608]
[1745534134077,0.03,151.39,151.38,2.44562363]
[1745534134648,0.03,151.39,151.36,6.60651736]
[1745534135366,0.03,151.39,151.37,2.44834913]
[1745534135770,9.9069281,151.39,151.37,2.44834913]
[1745534136073,9.9069281,151.39,151.34,6.60763843]
[1745534136954,9.9069281,151.39,151.35,2.44856057]
[1745534137363,9.9069281,151.39,151.36,2.44856057]
[1745534138050,9.9069281,151.39,151.37,2.44856057]
[1745534138356,0.03,151.39,151.37,2.44856057]
[1745534139377,0.03,151.39,151.37,9.0548797]
[1745534140077,0.03,151.39,151.38,2.44856057]
[1745534144670,0.03,151.39,151.38,9.05445302]
[1745534151183,0.03,151.39,151.38,18.93138112]
[1745534152291,0.03,151.39,151.38,23.83956282]
[1745534160394,0.03,151.39,151.38,25.48596282]
[1745534176832,0.03,151.39,151.38,25.48732058]
[1745534178433,0.03,151.41,151.38,45.59979489]
[1745534178434,1e-08,151.41,151.38,45.59979489]
[1745534178720,1e-08,151.41,151.4,28.66873853]
[1745534179219,1e-08,151.41,151.4,33.57692023]
[1745534179430,1e-08,151.41,151.4,36.02683856]
[1745534180220,1e-08,151.41,151.4,49.23985837]
[1745534180401,1e-08,151.41,151.4,42.63185837]
[1745534199138,1e-08,151.41,151.4,23.84004794]
[1745534200123,1e-08,151.41,151.4,13.96311984]
[1745534202222,1e-08,151.41,151.4,7.35810003]
[1745534202428,9.87692811,151.41,151.4,7.35810003]
[1745534202934,9.87692811,151.41,151.4,4.9081817]
[1745534203120,26.00000001,151.41,151.4,4.9081817]
[1745534203324,35.87692811,151.41,151.4,4.9081817]
[1745534203531,43.92732811,151.41,151.4,3.2415817]
[1745534203946,6.60501981,151.4,151.33,0.063]
[1745534204127,9.8769281,151.37,151.33,0.063]
[1745534204324,9.8769281,151.37,151.33,9.9399281]
[1745534205037,9.8769281,151.37,151.34,9.05418756]
[1745534205344,9.8769281,151.38,151.34,9.05418756]
[1745534205745,9.8769281,151.38,151.35,2.44654913]
[1745534206337,9.8769281,151.4,151.35,12.32347723]
[1745534206516,43.92732811,151.41,151.37,9.8769281]
[1745534206716,1e-08,151.41,151.39,9.8769281]
[1745534207021,1e-08,151.41,151.4,16.48194791]
[1745534208222,1e-08,151.41,151.4,18.92391037]
[1745534215651,1e-08,151.41,151.4,23.80610654]
[1745534230559,1e-08,151.41,151.4,13.92917844]
[1745534230747,1e-08,151.41,151.4,23.80610654]
[1745534241551,1e-08,151.41,151.4,21.36621302]
[1745534241758,1e-08,151.41,151.4,23.80837416]
[1745534251181,1e-08,151.41,151.4,30.41637416]
[1745534251377,1e-08,151.41,151.4,23.80837416]
[1745534273399,9.87692811,151.41,151.4,7.32642625]
[1745534273595,26.00000001,151.41,151.4,7.32642625]
[1745534274392,35.87692811,151.41,151.4,7.32642625]
[1745534274789,43.59982811,151.41,151.4,7.32642625]
[1745534275085,50.20441169,151.41,151.4,4.88426511]
[1745534276069,50.20441169,151.41,151.33,16.54786686]
[1745534276269,50.20441169,151.41,151.34,2.44665009]
[1745534276270,9.8769281,151.38,151.34,2.44665009]
[1745534277194,9.8769281,151.38,151.35,7.33983374]
[1745534278062,9.8769281,151.38,151.35,4.89318365]
[1745534278284,9.8769281,151.38,151.36,4.89318365]
[1745534279500,9.8769281,151.38,151.34,6.60762647]
[1745534280795,9.8769281,151.38,151.35,4.88456483]
[1745534281170,9.8769281,151.37,151.35,4.88456483]
[1745534281583,9.8769281,151.37,151.33,0.063]
[1745534281779,9.8769281,151.35,151.33,0.063]
[1745534285080,26.0,151.35,151.33,0.063]
[1745534290371,35.8769281,151.35,151.33,0.063]
[1745534291101,9.8769281,151.34,151.33,0.063]
[1745534291274,92.5769281,151.34,151.33,0.063]
[1745534292177,99.18456653,151.34,151.33,0.063]
[1745534293198,92.5769281,151.34,151.33,0.063]
[1745534293372,82.7,151.34,151.33,0.063]
[1745534295481,92.5769281,151.34,151.33,0.063]
[1745534305900,26.0,151.35,151.33,9.9399281]
[1745534306597,92.5769281,151.38,151.33,9.9399281]
[1745534307092,82.7,151.38,151.34,16.48456653]
[1745534307409,26.0,151.37,151.34,16.48456653]
[1745534310114,26.0,151.37,151.33,9.9399281]
[1745534310509,26.0,151.37,151.34,9.8769281]
[1745534312206,26.0,151.37,151.34,16.48444328]
[1745534312416,26.0,151.37,151.34,6.60751518]
[1745534315417,35.8769281,151.37,151.33,6.67087457]
[1745534315795,35.8769281,151.37,151.34,4.88250482]
[1745534316710,35.8769281,151.37,151.33,6.67087457]
[1745534317530,26.0,151.37,151.34,2.44539994]
[1745534318335,26.0,151.37,151.33,16.54780267]
[1745534318512,26.0,151.36,151.35,4.89713869]
[1745534318921,82.7,151.38,151.35,4.89713869]
[1745534319221,108.7,151.38,151.35,23.82936634]
[1745534319828,108.7,151.38,151.36,4.89713869]
[1745534320198,26.0,151.38,151.36,4.89713869]
[1745534320593,26.0,151.38,151.37,4.89713869]
[1745534321325,26.0,151.38,151.36,6.60667985]
[1745534321698,26.0,151.38,151.37,7.34656731]
[1745534322799,26.0,151.38,151.37,4.89771154]
[1745534331717,35.8769281,151.38,151.37,4.89771154]
[1745534331915,35.8769281,151.38,151.33,0.063]
[1745534332115,9.8769281,151.36,151.33,0.063]
[1745534332514,9.8769281,151.36,151.34,2.44639591]
[1745534332933,9.8769281,151.37,151.34,2.44639591]
[1745534333336,9.8769281,151.37,151.35,4.8933423]
[1745534335037,9.8769281,151.37,151.33,16.54788252]
[1745534335247,9.8769281,151.37,151.34,2.44614938]
[1745534335444,35.8769281,151.38,151.34,2.44614938]
[1745534336044,35.8769281,151.38,151.35,2.44614938]
[1745534337142,35.8769281,151.38,151.36,4.89186379]
[1745534337947,35.8769281,151.38,151.34,16.48442404]
[1745534338444,26.0,151.38,151.34,16.48442404]
[1745534339046,26.0,151.38,151.35,4.89248993]
[1745534339342,26.0,151.38,151.35,21.37660198]
[1745534339526,26.0,151.38,151.36,14.76941803]
[1745534340212,26.0,151.38,151.36,9.8769281]
[1745534340928,26.0,151.38,151.37,2.44591947]
[1745534341119,26.0,151.38,151.37,7.33773657]
[1745534344747,26.0,151.38,151.37,4.8918171]
[1745534350052,26.0,151.38,151.37,7.34135]
[1745534360043,32.60589245,151.38,151.37,7.34135]
[1745534361562,32.60589245,151.38,151.37,4.8918171]
[1745534361963,26.0,151.38,151.37,4.8918171]
[1745534364679,26.0,151.38,151.37,7.34357835]
[1745534369873,26.0,151.38,151.37,13.94990721]
[1745534370577,26.0,151.38,151.37,7.34357835]
[1745534376777,26.0,151.38,151.37,4.8918171]
[1745534376973,26.0,151.38,151.37,7.34336278]
[1745534377804,61.13246941,151.38,151.37,7.34336278]
[1745534377974,26.0,151.38,151.37,4.8918171]
[1745534378295,26.0,151.38,151.37,21.37507406]
[1745534379595,26.0,151.38,151.37,23.82676203]
[1745534383496,35.8769281,151.38,151.37,7.34350507]
[1745534383872,42.48282055,151.38,151.37,7.34350507]
[1745534384193,42.48282055,151.38,151.37,4.8918171]
[1745534384770,35.13246941,151.38,151.37,4.8918171]
[1745534384978,35.27463098,151.38,151.37,4.8918171]
[1745534385584,48.19463098,151.38,151.37,4.8918171]
[1745534385785,26.0,151.34,151.33,0.063]
[1745534386591,26.0,151.34,151.33,2.51521129]
[1745534387099,26.0,151.34,151.33,7.41963841]
[1745534393579,42.48456653,151.34,151.33,7.41963841]
[1745534393779,42.48456653,151.34,151.33,4.96742712]
[1745534393979,61.13421539,151.34,151.33,4.96742712]
[1745534394192,61.27637696,151.34,151.33,4.96742712]
[1745534395199,61.27637696,151.34,151.33,0.063]
[1745534413421,74.19637696,151.34,151.33,0.063]
[1745534414926,74.19637696,151.34,151.31,0.063]
[1745534414927,10.01908967,151.32,151.31,0.063]
[1745534416536,16.62760143,151.32,151.31,0.063]
[1745534417335,35.27725029,151.32,151.31,0.063]
[1745534422013,44.64964886,151.29,151.28,0.063]
[1745534422223,67.46657696,151.29,151.28,0.063]
[1745534423136,48.07639915,151.29,151.28,0.063]
[1745534424632,12.94,151.29,151.28,0.063]
[1745534424832,38.94,151.29,151.28,0.063]
[1745534426729,12.94,151.29,151.28,0.063]
[1745534428636,108.7,151.3,151.28,0.063]
[1745534428839,108.7,151.3,151.28,11.5796281]
[1745534429213,108.7,151.3,151.28,18.18980796]
[1745534429413,82.7,151.3,151.28,18.18980796]
[1745534429632,82.7,151.32,151.28,18.18980796]
[1745534430136,108.7,151.32,151.29,2.44661573]
[1745534430317,118.5769281,151.32,151.29,2.44661573]
[1745534430939,118.5769281,151.32,151.28,18.18980796]
[1745534432539,118.5769281,151.32,151.29,2.44804084]
[1745534432741,9.8769281,151.31,151.29,2.44804084]
[1745534433844,16.48588564,151.31,151.28,1.7027]
[1745534434448,125.18563921,151.32,151.28,1.7027]
[1745534434625,82.7,151.32,151.3,9.8769281]
[1745534434828,82.7,151.32,151.31,9.8769281]
[1745534435370,82.7,151.32,151.31,12.32559111]
[1745534435519,82.7,151.32,151.31,2.44866301]
[1745534438449,82.7,151.32,151.31,12.32559111]
[1745534438649,82.7,151.32,151.31,18.93453962]
[1745534439142,35.8769281,151.35,151.31,2.44866301]
[1745534439338,9.8769281,151.34,151.31,2.44866301]
[1745534439546,26.0,151.35,151.31,2.44866301]
[1745534439547,9.8769281,151.33,151.31,2.44866301]
[1745534440047,26.0,151.35,151.28,1.7027]
[1745534440048,9.8769281,151.32,151.28,1.7027]
[1745534440354,9.8769281,151.31,151.28,1.7027]
[1745534440930,9.8769281,151.31,151.29,2.44993623]
[1745534441150,16.48589467,151.31,151.29,2.44993623]
[1745534441849,9.8769281,151.31,151.29,2.44993623]
[1745534442028,9.8769281,151.31,151.3,2.44993623]
[1745534442644,16.48560329,151.32,151.3,2.44993623]
[1745534442950,16.48560329,151.32,151.29,2.44993623]
[1745534443947,16.48560329,151.32,151.3,2.44993623]
[1745534444847,16.48560329,151.32,151.29,2.44993623]
[1745534445562,9.8769281,151.31,151.29,2.44993623]
[1745534445740,9.8769281,151.31,151.3,2.44993623]
[1745534446055,42.48560329,151.32,151.3,2.44993623]
[1745534446632,42.48560329,151.32,151.29,2.44993623]
[1745534447046,9.8769281,151.31,151.29,2.44993623]
[1745534448034,16.48631342,151.3,151.29,2.44993623]
[1745534449660,16.48631342,151.3,151.28,0.063]
[1745534450859,9.8769281,151.29,151.28,0.063]
[1745534451437,9.8769281,151.29,151.28,2.51415349]
[1745534452354,35.8769281,151.29,151.28,2.51415349]
[1745534452672,125.18675029,151.29,151.28,2.51415349]
[1745534453165,125.18675029,151.29,151.28,0.063]
[1745534455041,35.27856072,151.29,151.28,0.063]
[1745534456181,0.14216157,151.28,151.27,0.063]
[1745534456338,88.44680207,151.28,151.27,0.063]
[1745534456543,48.93908967,151.28,151.27,0.063]
[1745534457047,55.54934879,151.28,151.27,0.063]
[1745534457541,95.05706119,151.28,151.27,0.063]
[1745534460151,55.54934879,151.28,151.27,0.063]
[1745534463443,55.40718722,151.28,151.27,0.063]
[1745534463765,48.7969281,151.28,151.27,0.063]
[1745534464149,74.05683608,151.28,151.27,0.063]
[1745534466952,74.19899765,151.28,151.27,0.063]
[1745534467147,113.70671005,151.28,151.27,0.063]
[1745534467469,74.19899765,151.28,151.27,0.063]
[1745534468964,113.70671005,151.28,151.27,0.063]
[1745534469171,74.19899765,151.28,151.27,0.063]
[1745534470087,113.70671005,151.28,151.27,0.063]
[1745534471750,44.79181043,151.27,151.26,0.063]
[1745534472069,28.66873853,151.27,151.26,0.063]
[1745534472889,35.27943463,151.27,151.26,0.063]
[1745534482663,35.27943463,151.27,151.26,1e-08]
[1745534482860,101.49181043,151.26,151.25,1e-08]
[1745534483067,18.79181043,151.25,151.24,1e-08]
[1745534483381,28.66873853,151.25,151.24,1e-08]
[1745534484293,35.28030877,151.25,151.24,1e-08]
[1745534486092,48.20030877,151.25,151.24,1e-08]
[1745534490079,48.0581472,151.25,151.24,1e-08]
[1745534492000,29.40849834,151.25,151.24,1e-08]
[1745534505169,19.53157024,151.25,151.24,1e-08]
[1745534505372,29.40849834,151.25,151.24,1e-08]
[1745534509301,48.0581472,151.25,151.24,1e-08]
[1745534515606,16.48824161,151.26,151.24,1e-08]
[1745534515806,42.48824161,151.26,151.24,1e-08]
[1745534516489,9.8769281,151.25,151.24,1e-08]
[1745534518019,16.48849834,151.25,151.24,1e-08]
[1745534524121,99.18849834,151.25,151.24,1e-08]
[1745534532316,117.8381472,151.25,151.24,1e-08]
[1745534532517,117.98030877,151.25,151.24,1e-08]
[1745534535920,35.28030877,151.25,151.24,1e-08]
[1745534545434,35.28030877,151.25,151.21,0.063]
[1745534545435,44.64964886,151.22,151.21,0.063]
[1745534545727,67.44657696,151.22,151.21,0.063]
[1745534547723,74.05945885,151.22,151.21,0.063]
[1745534548510,74.20162042,151.22,151.21,0.063]
[1745534549633,74.05945885,151.22,151.21,0.063]
[1745534551127,48.7969281,151.22,151.21,0.063]
[1745534551310,55.40980999,151.22,151.21,0.063]
[1745534551508,38.92,151.22,151.21,0.063]
[1745534551820,48.7969281,151.22,151.21,0.063]
[1745534553514,55.40980999,151.22,151.21,0.063]
[1745534554340,48.7969281,151.22,151.21,0.063]
[1745534555531,35.8769281,151.22,151.21,0.063]
[1745534556050,26.0,151.22,151.21,0.063]
[1745534557345,26.0,151.22,151.21,2.5219878]
[1745534558031,26.0,151.22,151.21,0.063]
[1745534558337,42.48980999,151.22,151.21,0.063]
[1745534560016,42.48980999,151.22,151.21,0.063]
[1745534561628,35.8769281,151.22,151.21,0.063]
[1745534562550,35.8769281,151.22,151.21,2.52326167]
[1745534564244,35.8769281,151.22,151.21,0.063]
[1745534565454,9.8769281,151.22,151.21,0.063]
[1745534569628,9.8769281,151.22,151.21,2.5244312]
[1745534570258,9.8769281,151.22,151.21,0.063]
[1745534572756,9.8769281,151.22,151.21,2.52483421]
[1745534573655,9.8769281,151.22,151.21,0.063]
[1745534575863,9.8769281,151.22,151.21,2.52513409]
[1745534577668,16.48980999,151.22,151.21,2.52513409]
[1745534580048,9.8769281,151.22,151.21,2.52513409]
[1745534583964,35.8769281,151.23,151.21,2.52513409]
[1745534584357,35.8769281,151.23,151.21,0.063]
[1745534585369,9.8769281,151.22,151.21,0.063]
[1745534586055,9.8769281,151.22,151.21,2.52470342]
[1745534589069,82.7,151.24,151.21,9.1379713]
[1745534589371,82.7,151.24,151.22,11.3992281]
[1745534589668,82.7,151.24,151.22,1.5223]
[1745534589963,82.7,151.24,151.23,2.46170342]
[1745534591378,92.5769281,151.24,151.23,2.46170342]
[1745534591856,125.1889355,151.24,151.23,2.46170342]
[1745534592062,125.1889355,151.24,151.21,0.063]
[1745534592389,9.8769281,151.22,151.21,0.063]
[1745534593971,9.8769281,151.22,151.21,2.52469787]
[1745534598578,92.5769281,151.23,151.21,2.52469787]
[1745534599476,92.5769281,151.23,151.21,0.063]
[1745534602478,9.8769281,151.22,151.21,0.063]
[1745534603060,9.8769281,151.22,151.21,2.52617836]
[1745534606463,16.48980999,151.22,151.21,2.52617836]
[1745534606967,16.48980999,151.22,151.21,0.063]
[1745534610384,35.13945885,151.22,151.21,0.063]
[1745534610565,35.28162042,151.22,151.21,0.063]
[1745534611194,18.64964886,151.21,151.2,0.063]
[1745534611370,80.95428936,151.21,151.2,0.063]
[1745534612576,87.70977015,151.21,151.2,0.063]
[1745534617511,87.70977015,151.21,151.18,0.063]
[1745534617512,26.0,151.19,151.18,0.063]
[1745534617701,0.14216157,151.18,151.17,0.063]
[1745534618014,10.01908967,151.18,151.17,0.063]
[1745534619700,16.63372123,151.18,151.17,0.063]
[1745534621213,35.14120852,151.18,151.17,0.063]
[1745534621898,35.28337009,151.18,151.17,0.063]
[1745534632902,35.28337009,151.18,151.17,1e-08]
[1745534633327,26.0,151.15,151.14,0.063]
[1745534633499,10.01908967,151.15,151.14,0.063]
[1745534635422,16.63503409,151.15,151.14,0.063]
[1745534648384,35.28468295,151.15,151.14,0.063]
[1745534648673,18.64964886,151.14,151.13,0.063]
[1745534649039,28.52657696,151.14,151.13,0.063]
[1745534651669,35.28512069,151.14,151.13,0.063]
[1745534651866,51.26603102,151.14,151.13,0.063]
[1745534652040,61.14295912,151.14,151.13,0.063]
[1745534652449,35.8769281,151.14,151.13,0.063]
[1745534653988,26.0,151.14,151.13,0.063]
[1745534654278,35.8769281,151.14,151.13,0.063]
[1745534654451,92.5769281,151.15,151.13,1.6489]
[1745534659580,99.19288832,151.15,151.14,2.4640614]
[1745534662385,92.5769281,151.15,151.14,2.4640614]
[1745534663363,99.19287252,151.15,151.14,2.4640614]
[1745534663564,92.5769281,151.15,151.14,2.4640614]
[1745534664070,99.19287252,151.15,151.14,2.4640614]
[1745534665088,82.7,151.15,151.14,2.4640614]
[1745534665261,92.5769281,151.15,151.14,2.4640614]
[1745534665456,99.19287252,151.15,151.14,2.4640614]
[1745534666477,92.5769281,151.15,151.14,2.4640614]
[1745534667984,99.19287252,151.15,151.14,2.4640614]
[1745534669889,92.5769281,151.15,151.14,2.4640614]
[1745534670492,99.19287252,151.15,151.14,2.4640614]